fUST/lending_fUST_20240804
["ID","MTS","AMOUNT","RATE_DAILY","PERIOD"]
[334065541,1722718244082,-500.0,0.00013698,2]
[334065542,1722718244091,-500.0,0.00013698,2]
[334065543,1722718244100,-500.0,0.00013698,2]
[334065544,1722718244110,-192.18361047,0.00013698,2]
[334065545,1722718244119,-500.0,0.00013698,2]
[334065546,1722718244130,-1487.32,0.00013698,2]
[334065547,1722718244140,-500.0,0.00013698,2]
[334065548,1722718244150,-500.0,0.00013698,2]
[334065549,1722718244159,-500.0,0.00013698,2]
[334065550,1722718244168,-501.48471063,0.00013698,2]
[334065551,1722718244178,-500.0,0.00013698,2]
[334065552,1722718244187,-500.0,0.00013698,2]
[334065553,1722718244199,-500.0,0.00013698,2]
[334065554,1722718244210,-500.0,0.00013698,2]
[334065555,1722718244219,-500.0,0.00013698,2]
[334065556,1722718244229,-500.0,0.00013698,2]
[334065557,1722718244239,-500.0,0.00013698,2]
[334065558,1722718244248,-362.02501254,0.00013698,2]
[334065559,1722718244257,-699.04,0.00013698,2]
[334065560,1722718244267,-500.0,0.00013698,2]
[334065561,1722718244276,-500.0,0.00013698,2]
[334065562,1722718244286,-500.0,0.00013698,2]
[334065563,1722718244295,-500.0,0.00013698,2]
[334065564,1722718244304,-500.0,0.00013698,2]
[334065565,1722718244314,-500.0,0.00013698,2]
[334065566,1722718244323,-500.0,0.00013698,2]
[334065567,1722718244333,-500.0,0.00013698,2]
[334065568,1722718244342,-500.0,0.00013698,2]
[334065569,1722718244352,-500.0,0.00013698,2]
[334065570,1722718244361,-500.0,0.00013698,2]
[334065571,1722718244371,-500.0,0.00013698,2]
[334065572,1722718244381,-500.0,0.00013698,2]
[334065573,1722718244390,-500.0,0.00013698,2]
[334065574,1722718244400,-500.0,0.00013698,2]
[334065575,1722718244409,-500.0,0.00013698,2]
[334065576,1722718244418,-500.0,0.00013698,2]
[334065577,1722718244428,-500.0,0.00013698,2]
[334065578,1722718244437,-500.0,0.00013698,2]
[334065579,1722718244448,-763.33,0.00013698,2]
[334065580,1722718244458,-500.0,0.00013698,2]
[334065581,1722718244468,-500.0,0.00013698,2]
[334065582,1722718244478,-881.56,0.00013698,2]
[334065583,1722718244602,-500.0,0.00013698,2]
[334065584,1722718244612,-500.0,0.00013698,2]
[334065585,1722718244621,-502.8479274,0.00013698,2]
[334065586,1722718244631,-500.0,0.00013698,2]
[334065587,1722718244641,-523.61736077,0.00013698,2]
[334065588,1722718244650,-500.0,0.00013698,2]
[334065589,1722718244659,-398.13269925,0.00013698,2]
[334065590,1722718244668,-500.0,0.00013698,2]
[334065591,1722718244680,-502.07387416,0.00013698,2]
[334065592,1722718244690,-500.0,0.00013698,2]
[334065593,1722718244699,-500.0,0.00013698,2]
[334065594,1722718244709,-578.79,0.00013698,2]
[334065595,1722718244718,-513.41672915,0.00013698,2]
[334065596,1722718244728,-500.0,0.00013698,2]
[334065597,1722718244737,-500.0,0.00013698,2]
[334065598,1722718244746,-500.0,0.00013698,2]
[334065599,1722718244755,-508.92556124,0.00013698,2]
[334065600,1722718244765,-500.0,0.00013698,2]
[334065601,1722718244775,-504.89101976,0.00013698,2]
[334065602,1722718244784,-500.0,0.00013698,2]
[334065603,1722718244793,-1451.29,0.00013698,2]
[334065604,1722718244804,-500.0,0.00013698,2]
[334065605,1722718244813,-500.0,0.00013698,2]
[334065606,1722718244823,-1624.46,0.00013698,2]
[334065607,1722718244832,-1315.39,0.00013698,2]
[334065608,1722718244841,-514.21193268,0.00013698,2]
[334065609,1722718244851,-500.0,0.00013698,2]
[334065610,1722718244860,-500.0,0.00013698,2]
[334065611,1722718244869,-500.0,0.00013698,2]
[334065612,1722718244878,-500.0,0.00013698,2]
[334065613,1722718244887,-500.0,0.00013698,2]
[334065614,1722718244896,-500.0,0.00013698,2]
[334065615,1722718244907,-248.46766945,0.00013698,2]
[334065616,1722718244916,-500.0,0.00013698,2]
[334065617,1722718244925,-500.0,0.00013698,2]
[334065618,1722718244935,-500.0,0.00013698,2]
[334065619,1722718244944,-500.0,0.00013698,2]
[334065620,1722718244954,-504.81039406,0.00013698,2]
[334065621,1722718244963,-567.84107532,0.00013698,2]
[334065622,1722718244973,-500.0,0.00013698,2]
[334065623,1722718244982,-500.0,0.00013698,2]
[334065624,1722718244991,-500.0,0.00013698,2]
[334065625,1722718245000,-500.0,0.00013698,2]
[334065626,1722718245010,-500.0,0.00013698,2]
[334065627,1722718245019,-1200.99,0.00013698,2]
[334065628,1722718245029,-434.61283012,0.00013698,2]
[334065629,1722718245039,-504.82750399,0.00013698,2]
[334065630,1722718245048,-500.0,0.00013698,2]
[334065631,1722718245057,-500.0,0.00013698,2]
[334065632,1722718245066,-500.0,0.00013698,2]
[334065633,1722718245075,-320.51396772,0.00013698,2]
[334065634,1722718245085,-500.0,0.00013698,2]
[334065635,1722718245094,-500.0,0.00013698,2]
[334065636,1722718245104,-527.15039863,0.00013698,2]
[334065637,1722718245113,-500.0,0.00013698,2]
[334065638,1722718245122,-500.0,0.00013698,2]
[334065639,1722718245132,-500.0,0.00013698,2]
[334065640,1722718245141,-188.0102848,0.00013698,2]
[334065641,1722718245151,-161.95589257,0.00013698,2]
[334065642,1722718245160,-500.0,0.00013698,2]
[334065643,1722718245169,-500.0,0.00013698,2]
[334065644,1722718245178,-4522.99,0.00013698,2]
[334065645,1722718245187,-500.0,0.00013698,2]
[334065646,1722718245198,-500.0,0.00013698,2]
[334065647,1722718245208,-500.0,0.00013698,2]
[334065648,1722718245217,-500.0,0.00013698,2]
[334065649,1722718245226,-508.22712239,0.00013698,2]
[334065650,1722718245235,-500.0,0.00013698,2]
[334065651,1722718245245,-4360.15,0.00013698,2]
[334065652,1722718245254,-500.0,0.00013698,2]
[334065653,1722718245264,-602.68,0.00013698,2]
[334065655,1722718245273,-500.0,0.00013698,2]
[334065656,1722718245283,-500.0,0.00013698,2]
[334065657,1722718245292,-500.0,0.00013698,2]
[334065658,1722718245301,-1910.64,0.00013698,2]
[334065659,1722718245311,-500.0,0.00013698,2]
[334065660,1722718245320,-500.0,0.00013698,2]
[334065661,1722718245330,-1365.86,0.00013698,2]
[334065662,1722718245339,-500.0,0.00013698,2]
[334065663,1722718245349,-780.34,0.00013698,2]
[334065664,1722718245358,-615.49978474,0.00013698,2]
[334065665,1722718245367,-500.0,0.00013698,2]
[334065666,1722718245377,-500.0,0.00013698,2]
[334065667,1722718245386,-500.0,0.00013698,2]
[334065668,1722718245397,-500.0,0.00013698,2]
[334065669,1722718245408,-500.0,0.00013698,2]
[334065670,1722718245417,-2546.47,0.00013698,2]
[334065671,1722718245427,-506.34448599,0.00013698,2]
[334065672,1722718245436,-500.0,0.00013698,2]
[334065673,1722718245447,-500.0,0.00013698,2]
[334065674,1722718245457,-1175.34,0.00013698,2]
[334065675,1722718245468,-500.0,0.00013698,2]
[334065676,1722718245477,-533.85,0.00013698,2]
[334065677,1722718245487,-553.89,0.00013698,2]
[334065678,1722718245496,-500.0,0.00013698,2]
[334065679,1722718245505,-500.0,0.00013698,2]
[334065680,1722718245515,-500.0,0.00013698,2]
[334065681,1722718245524,-538.64,0.00013698,2]
[334065682,1722718245534,-515.14,0.00013698,2]
[334065683,1722718245544,-500.0,0.00013698,2]
[334065684,1722718245553,-500.0,0.00013698,2]
[334065685,1722718245563,-500.0,0.00013698,2]
[334065686,1722718245572,-500.0,0.00013698,2]
[334065687,1722718245581,-495.70446836,0.00013698,2]
[334065688,1722718245591,-377.49011062,0.00013698,2]
[334065689,1722718245603,-500.0,0.00013698,2]
[334065690,1722718245612,-500.0,0.00013698,2]
[334065691,1722718245621,-500.0,0.00013698,2]
[334065692,1722718245631,-500.0,0.00013698,2]
[334065693,1722718245640,-500.0,0.00013698,2]
[334065694,1722718245649,-3830.67,0.00013698,2]
[334065695,1722718245660,-503.54419415,0.00013698,2]
[334065696,1722718245670,-500.0,0.00013698,2]
[334065697,1722718245683,-500.0,0.00013698,2]
[334065698,1722718245693,-3000.0,0.00013699,2]
[334065699,1722718245705,-796.984357,0.00013699,2]
[334065700,1722718245722,-150.112233,0.000137,2]
[334065701,1722718245732,-570.53298282,0.00013735,2]
[334065702,1722718245744,-206.9342036,0.00013851,2]
[334065703,1722718245754,-404.7502085,0.00013851,2]
[334065704,1722718245766,-1872.82,0.0001387,2]
[334065705,1722718245776,-5139.78556793,0.00013871,2]
[334065718,1722718246992,-500.0,0.00013698,2]
[334065719,1722718247001,-13327.69054598,0.00013871,2]
[334065720,1722718247011,-570.53298282,0.00013872,2]
[334065721,1722718247021,-2000.0,0.00013872,2]
[334065722,1722718247030,-500.0,0.0001396,2]
[334065723,1722718247040,-21470.4305851,0.00013961,2]
[334065724,1722718247049,-1872.82,0.00013961,2]
[334065725,1722718247059,-21470.4305851,0.00013962,2]
[334065726,1722718247068,-500.0,0.00013971,2]
[334065727,1722718247077,-328.63025851,0.00013971,2]
[334065728,1722718247086,-500.0,0.00013971,2]
[334065729,1722718247095,-500.0,0.00013971,2]
[334065730,1722718247105,-500.0,0.00013971,2]
[334065731,1722718247114,-500.0,0.00013971,2]
[334065732,1722718247123,-500.0,0.00013971,2]
[334065733,1722718247132,-500.0,0.00013971,2]
[334065734,1722718247142,-288.39866929,0.00013971,2]
[334065735,1722718247151,-500.0,0.00013971,2]
[334065736,1722718247160,-500.0,0.00013971,2]
[334065737,1722718247169,-500.0,0.00013971,2]
[334065738,1722718247178,-500.0,0.00013971,2]
[334065739,1722718247187,-500.0,0.00013971,2]
[334065740,1722718247197,-1872.82,0.00013971,2]
[334065741,1722718247208,-1872.82,0.00013971,2]
[334065742,1722718247217,-510.52449572,0.00013972,2]
[334065743,1722718247226,-500.0,0.00013972,2]
[334065744,1722718247236,-500.0,0.00013972,2]
[334065745,1722718247245,-500.0,0.00013972,2]
[334065746,1722718247254,-500.0,0.00013972,2]
[334065747,1722718247263,-500.0,0.00013972,2]
[334065748,1722718247273,-500.0,0.00013972,2]
[334065749,1722718247282,-257.52074105,0.00013972,2]
[334065750,1722718247291,-500.0,0.00013972,2]
[334065751,1722718247300,-500.0,0.00013972,2]
[334065752,1722718247309,-500.0,0.00013972,2]
[334065753,1722718247318,-977.55,0.00013972,2]
[334065754,1722718247327,-607.13,0.00013972,2]
[334065755,1722718247336,-500.0,0.00013972,2]
[334065756,1722718247345,-500.0,0.00013972,2]
[334065757,1722718247354,-500.0,0.00013972,2]
[334065758,1722718247363,-500.0,0.00013972,2]
[334065759,1722718247372,-500.0,0.00013972,2]
[334065760,1722718247381,-500.0,0.00013972,2]
[334065761,1722718247391,-503.06931546,0.00013972,2]
[334065762,1722718247490,-500.0,0.00013972,2]
[334065763,1722718247500,-500.0,0.00013972,2]
[334065764,1722718247509,-447.8323181,0.00013972,2]
[334065765,1722718247518,-500.0,0.00013972,2]
[334065766,1722718247527,-500.0,0.00013972,2]
[334065767,1722718247537,-507.20771898,0.00013972,2]
[334065768,1722718247546,-500.0,0.00013972,2]
[334065769,1722718247556,-500.0,0.00013972,2]
[334065770,1722718247565,-580.06,0.00013972,2]
[334065771,1722718247574,-500.0,0.00013972,2]
[334065772,1722718247583,-1036.42,0.00013972,2]
[334065773,1722718247593,-313.79825473,0.00013972,2]
[334065774,1722718247612,-500.0,0.00013972,2]
[334065775,1722718247625,-500.0,0.00013972,2]
[334065776,1722718247634,-500.0,0.00013972,2]
[334065777,1722718247645,-500.0,0.00013972,2]
[334065778,1722718247656,-500.0,0.00013972,2]
[334065779,1722718247666,-500.0,0.00013972,2]
[334065780,1722718247676,-500.0,0.00013972,2]
[334065781,1722718247686,-500.0,0.00013972,2]
[334065782,1722718247695,-611.61,0.00013972,2]
[334065783,1722718247705,-500.0,0.00013972,2]
[334065784,1722718247715,-500.0,0.00013972,2]
[334065785,1722718247725,-588.15,0.00013972,2]
[334065786,1722718247735,-877.23,0.00013972,2]
[334065787,1722718247745,-500.0,0.00013972,2]
[334065788,1722718247754,-500.0,0.00013972,2]
[334065789,1722718247764,-500.0,0.00013972,2]
[334065790,1722718247774,-500.0,0.00013972,2]
[334065791,1722718247784,-500.0,0.00013972,2]
[334065792,1722718247794,-500.0,0.00013972,2]
[334065793,1722718247803,-658.77,0.00013972,2]
[334065794,1722718247814,-500.0,0.00013972,2]
[334065795,1722718247824,-500.0,0.00013972,2]
[334065796,1722718247833,-500.0,0.00013972,2]
[334065797,1722718247844,-500.0,0.00013972,2]
[334065798,1722718247854,-500.0,0.00013972,2]
[334065799,1722718247864,-500.0,0.00013972,2]
[334065800,1722718247874,-500.0,0.00013972,2]
[334065801,1722718247889,-500.0,0.00013972,2]
[334065802,1722718247899,-500.0,0.00013972,2]
[334065803,1722718247908,-500.0,0.00013972,2]
[334065804,1722718247918,-500.0,0.00013972,2]
[334065805,1722718247928,-500.0,0.00013972,2]
[334065806,1722718247937,-500.0,0.00013972,2]
[334065807,1722718247947,-1487.32,0.00013972,2]
[334065808,1722718247956,-500.0,0.00013972,2]
[334065809,1722718247966,-500.0,0.00013972,2]
[334065810,1722718247976,-500.0,0.00013972,2]
[334065811,1722718247987,-500.0,0.00013972,2]
[334065812,1722718247997,-500.0,0.00013972,2]
[334065813,1722718248007,-699.04,0.00013972,2]
[334065814,1722718248017,-500.0,0.00013972,2]
[334065815,1722718248027,-417.99611109,0.00013972,2]
[334065816,1722718248037,-500.0,0.00013972,2]
[334065817,1722718248047,-500.0,0.00013972,2]
[334065818,1722718248057,-500.0,0.00013972,2]
[334065819,1722718248067,-763.33,0.00013972,2]
[334065820,1722718248076,-500.0,0.00013972,2]
[334065821,1722718248086,-881.56,0.00013972,2]
[334065822,1722718248096,-500.0,0.00013972,2]
[334065823,1722718248106,-578.79,0.00013972,2]
[334065824,1722718248116,-500.0,0.00013972,2]
[334065825,1722718248126,-500.0,0.00013972,2]
[334065826,1722718248135,-1451.29,0.00013972,2]
[334065827,1722718248145,-506.68472887,0.00013972,2]
[334065828,1722718248155,-1624.46,0.00013972,2]
[334065829,1722718248165,-1315.39,0.00013972,2]
[334065830,1722718248175,-500.0,0.00013972,2]
[334065831,1722718248184,-570.32,0.00013972,2]
[334065832,1722718248195,-500.0,0.00013972,2]
[334065833,1722718248204,-500.0,0.00013972,2]
[334065834,1722718248215,-500.0,0.00013972,2]
[334065835,1722718248225,-500.0,0.00013972,2]
[334065836,1722718248234,-500.0,0.00013972,2]
[334065837,1722718248244,-1200.99,0.00013972,2]
[334065838,1722718248254,-500.0,0.00013972,2]
[334065839,1722718248264,-621.43655004,0.00013972,2]
[334065840,1722718248273,-500.0,0.00013972,2]
[334065841,1722718248283,-4522.99,0.00013972,2]
[334065842,1722718248292,-500.0,0.00013972,2]
[334065843,1722718248301,-500.0,0.00013972,2]
[334065844,1722718248311,-500.0,0.00013972,2]
[334065845,1722718248320,-500.0,0.00013972,2]
[334065846,1722718248330,-4360.15,0.00013972,2]
[334065847,1722718248339,-602.68,0.00013972,2]
[334065848,1722718248349,-500.0,0.00013972,2]
[334065849,1722718248359,-1910.64,0.00013972,2]
[334065850,1722718248369,-500.0,0.00013972,2]
[334065851,1722718248379,-500.0,0.00013972,2]
[334065852,1722718248390,-1365.86,0.00013972,2]
[334065853,1722718248399,-780.34,0.00013972,2]
[334065854,1722718248409,-500.0,0.00013972,2]
[334065855,1722718248418,-500.0,0.00013972,2]
[334065856,1722718248427,-500.0,0.00013972,2]
[334065857,1722718248438,-2546.47,0.00013972,2]
[334065858,1722718248447,-500.0,0.00013972,2]
[334065859,1722718248461,-1175.34,0.00013972,2]
[334065860,1722718248471,-533.85,0.00013972,2]
[334065861,1722718248481,-553.89,0.00013972,2]
[334065862,1722718248491,-500.0,0.00013972,2]
[334065863,1722718248501,-500.0,0.00013972,2]
[334065864,1722718248511,-500.0,0.00013972,2]
[334065865,1722718248522,-538.64,0.00013972,2]
[334065866,1722718248531,-515.14,0.00013972,2]
[334065867,1722718248541,-500.0,0.00013972,2]
[334065868,1722718248551,-500.0,0.00013972,2]
[334065869,1722718248562,-500.0,0.00013972,2]
[334065870,1722718248573,-500.0,0.00013972,2]
[334065871,1722718248583,-500.0,0.00013972,2]
[334065872,1722718248597,-3830.67,0.00013972,2]
[334065873,1722718248608,-500.0,0.00013972,2]
[334065874,1722718248617,-200.0,0.00013973,2]
[334065875,1722718248628,-2200.00843326,0.00013999,2]
[334065876,1722718248646,-654.0,0.00013999,2]
[334065879,1722718360348,1000.0,0.00027,120]
[334065880,1722718469166,805.12,0.00025,60]
[334065882,1722719225130,-337.15324136,9.634e-05,2]
[334065883,1722719358174,-512.30265398,9.506e-05,2]
[334065884,1722719358196,-512.30265398,9.602e-05,2]
[334065885,1722719358219,-300.0,9.609e-05,2]
[334065886,1722719358243,-300.0,9.609e-05,2]
[334065887,1722719358266,-4027.24812776,9.61e-05,2]
[334065959,1722719431985,-300.0,9.513e-05,2]
[334065961,1722719431995,-300.0,9.513e-05,2]
[334065963,1722719432005,-1495.47226162,9.514e-05,2]
[334066133,1722719437965,-15334.11915004,9.514e-05,2]
[334066135,1722719437976,-20872.75187224,9.61e-05,2]
[334066137,1722719437986,-404.58378299,9.61e-05,2]
[334066139,1722719437996,-356.90689636,9.61e-05,2]
[334066141,1722719438005,-1900.06557864,9.634e-05,2]
[334066144,1722719438019,-244.08166116,9.999e-05,2]
[334066146,1722719438040,-664.18424721,9.999e-05,2]
[334066148,1722719438053,-341.49741289,9.999e-05,2]
[334066150,1722719438062,-256.21501528,9.999e-05,2]
[334066187,1722719440058,-266.80858207,9.999e-05,2]
[334066189,1722719440068,-244.82593148,9.999e-05,2]
[334066192,1722719440156,-155.78874176,9.999e-05,2]
[334066193,1722719440192,-694.06857466,9.999e-05,2]
[334066194,1722719440201,-416.33957784,9.999e-05,2]
[334066195,1722719440211,-209.85118264,9.999e-05,2]
[334066196,1722719440220,-156.95333335,9.999e-05,2]
[334066197,1722719440229,-250.0,0.00010374,2]
[334066198,1722719440238,-250.0,0.00010402,2]
[334066199,1722719440247,-250.0,0.0001043,2]
[334066200,1722719440257,-250.0,0.00010459,2]
[334066201,1722719440266,-420.0,0.00010464,2]
[334066202,1722719440276,-420.0,0.00010464,2]
[334066203,1722719440285,-250.0,0.00010487,2]
[334066204,1722719440295,-250.0,0.00010516,2]
[334066205,1722719440305,-250.0,0.00010544,2]
[334066206,1722719440315,-250.0,0.00010572,2]
[334066207,1722719440325,-250.0,0.00010601,2]
[334066208,1722719440334,-250.0,0.00010629,2]
[334066209,1722719440343,-250.0,0.00010658,2]
[334066210,1722719440353,-31.59057621,0.00010686,2]
[334066211,1722719440367,-218.40942379,0.00010686,2]
[334066212,1722719440376,-250.0,0.00010714,2]
[334066213,1722719440386,-250.0,0.00010743,2]
[334066214,1722719440396,-250.0,0.00010771,2]
[334066215,1722719440406,-250.0,0.00010799,2]
[334066216,1722719440417,-250.0,0.00010828,2]
[334066217,1722719440426,-250.0,0.00010856,2]
[334066218,1722719440436,-250.0,0.00010885,2]
[334066219,1722719440445,-236.32,0.00010959,2]
[334066220,1722719440454,-196.93,0.00010959,2]
[334066221,1722719440464,-587.0,0.00011511,2]
[334066222,1722719440473,-163.0,0.00011511,2]
[334066223,1722719440483,-1723.74439945,0.000129,2]
[334066224,1722719440492,-166.956025,0.00012986,2]
[334066225,1722719440501,-485.05067387,0.000132,2]
[334066226,1722719440512,-2049.22,0.00013424,2]
[334066227,1722719440524,-479.1287068,0.00013597,2]
[334066228,1722719440536,-479.1287068,0.00013666,2]
[334066229,1722719440548,-200.0,0.00013673,2]
[334066230,1722719440559,-95158.1720083,0.00013688,2]
[334066231,1722719440568,-2049.22,0.00013697,2]
[334066232,1722719440578,-2049.22,0.00013697,2]
[334066233,1722719440588,-2049.22,0.00013697,2]
[334066234,1722719440599,-500.0,0.00013698,2]
[334066235,1722719440610,-500.0,0.00013698,2]
[334066236,1722719440621,-500.0,0.00013698,2]
[334066237,1722719440632,-500.0,0.00013698,2]
[334066238,1722719440642,-505.54303621,0.00013698,2]
[334066239,1722719440652,-500.0,0.00013698,2]
[334066240,1722719440664,-500.0,0.00013698,2]
[334066241,1722719440674,-500.0,0.00013698,2]
[334066242,1722719440683,-500.0,0.00013698,2]
[334066243,1722719440692,-500.0,0.00013698,2]
[334066244,1722719440701,-500.0,0.00013698,2]
[334066245,1722719440710,-500.0,0.00013698,2]
[334066246,1722719440719,-519.81703122,0.00013698,2]
[334066247,1722719440728,-500.0,0.00013698,2]
[334066248,1722719440737,-500.0,0.00013698,2]
[334066249,1722719440746,-500.41144212,0.00013698,2]
[334066250,1722719440755,-500.0,0.00013698,2]
[334066251,1722719440764,-500.0,0.00013698,2]
[334066252,1722719440774,-500.0,0.00013698,2]
[334066253,1722719440783,-500.0,0.00013698,2]
[334066254,1722719440792,-500.0,0.00013698,2]
[334066255,1722719440801,-500.0,0.00013698,2]
[334066256,1722719440810,-500.0,0.00013698,2]
[334066257,1722719440819,-500.0,0.00013698,2]
[334066258,1722719440828,-500.0,0.00013698,2]
[334066259,1722719440840,-500.0,0.00013698,2]
[334066260,1722719440849,-500.0,0.00013698,2]
[334066261,1722719440859,-500.0,0.00013698,2]
[334066262,1722719440868,-312.51887577,0.00013698,2]
[334066263,1722719440877,-500.0,0.00013698,2]
[334066264,1722719440886,-500.0,0.00013698,2]
[334066265,1722719440895,-500.0,0.00013698,2]
[334066266,1722719440907,-500.0,0.00013698,2]
[334066267,1722719440918,-500.0,0.00013698,2]
[334066268,1722719440927,-500.0,0.00013698,2]
[334066269,1722719440938,-500.0,0.00013698,2]
[334066270,1722719440951,-500.0,0.00013698,2]
[334066271,1722719440960,-386.3386317,0.00013698,2]
[334066272,1722719440969,-500.0,0.00013698,2]
[334066273,1722719440977,-500.0,0.00013698,2]
[334066274,1722719440988,-500.0,0.00013698,2]
[334066275,1722719440998,-500.0,0.00013698,2]
[334066276,1722719441007,-455.35880274,0.00013698,2]
[334066277,1722719441018,-500.0,0.00013698,2]
[334066278,1722719441027,-500.0,0.00013698,2]
[334066279,1722719441038,-500.0,0.00013698,2]
[334066280,1722719441047,-448.28821608,0.00013698,2]
[334066281,1722719441058,-500.0,0.00013698,2]
[334066282,1722719441068,-487.06573187,0.00013698,2]
[334066283,1722719441078,-500.0,0.00013698,2]
[334066284,1722719441087,-500.0,0.00013698,2]
[334066285,1722719441097,-534.47,0.00013698,2]
[334066286,1722719441106,-500.0,0.00013698,2]
[334066287,1722719441117,-524.57847324,0.00013698,2]
[334066288,1722719441126,-500.0,0.00013698,2]
[334066289,1722719441136,-500.0,0.00013698,2]
[334066290,1722719441146,-500.0,0.00013698,2]
[334066291,1722719441160,-500.0,0.00013698,2]
[334066292,1722719441171,-500.0,0.00013698,2]
[334066293,1722719441181,-500.0,0.00013698,2]
[334066294,1722719441191,-500.0,0.00013698,2]
[334066295,1722719441200,-500.0,0.00013698,2]
[334066296,1722719441210,-592.33101691,0.00013698,2]
[334066297,1722719441219,-500.0,0.00013698,2]
[334066298,1722719441229,-500.0,0.00013698,2]
[334066299,1722719441239,-188.66237129,0.00013698,2]
[334066300,1722719441248,-194.27418549,0.00013698,2]
[334066301,1722719441258,-445.78366679,0.00013698,2]
[334066302,1722719441268,-500.0,0.00013698,2]
[334066303,1722719441278,-289.26489898,0.00013698,2]
[334066304,1722719441287,-500.0,0.00013698,2]
[334066305,1722719441296,-500.0,0.00013698,2]
[334066306,1722719441305,-500.0,0.00013698,2]
[334066307,1722719441315,-500.0,0.00013698,2]
[334066308,1722719441324,-500.0,0.00013698,2]
[334066309,1722719441333,-500.0,0.00013698,2]
[334066310,1722719441343,-209.2331017,0.00013698,2]
[334066311,1722719441353,-500.0,0.00013698,2]
[334066312,1722719441363,-500.0,0.00013698,2]
[334066313,1722719441372,-500.0,0.00013698,2]
[334066314,1722719441381,-500.0,0.00013698,2]
[334066315,1722719441391,-500.0,0.00013698,2]
[334066316,1722719441401,-500.0,0.00013698,2]
[334066317,1722719441416,-500.0,0.00013698,2]
[334066318,1722719441425,-501.82770211,0.00013698,2]
[334066319,1722719441435,-173.0145936,0.00013698,2]
[334066320,1722719441444,-500.0,0.00013698,2]
[334066321,1722719441454,-500.0,0.00013698,2]
[334066322,1722719441463,-289.47706086,0.00013698,2]
[334066323,1722719441473,-500.0,0.00013698,2]
[334066324,1722719441482,-500.0,0.00013698,2]
[334066325,1722719441491,-500.0,0.00013698,2]
[334066326,1722719441501,-500.0,0.00013698,2]
[334066327,1722719441513,-534.09,0.00013698,2]
[334066328,1722719441523,-499.99999999,0.00013698,2]
[334066329,1722719441532,-1039.68,0.00013698,2]
[334066330,1722719441542,-500.0,0.00013698,2]
[334066331,1722719441551,-500.0,0.00013698,2]
[334066332,1722719441560,-500.0,0.00013698,2]
[334066333,1722719441570,-500.0,0.00013698,2]
[334066334,1722719441580,-500.0,0.00013698,2]
[334066335,1722719441589,-500.0,0.00013698,2]
[334066336,1722719441599,-500.0,0.00013698,2]
[334066337,1722719441609,-500.0,0.00013698,2]
[334066338,1722719441619,-650.1,0.00013698,2]
[334066339,1722719441629,-500.0,0.00013698,2]
[334066340,1722719441639,-500.0,0.00013698,2]
[334066341,1722719441649,-507.56802688,0.00013698,2]
[334066342,1722719441663,-233.61649993,0.00013698,2]
[334066343,1722719441673,-543.59444247,0.00013698,2]
[334066344,1722719441683,-500.0,0.00013698,2]
[334066345,1722719441692,-500.0,0.00013698,2]
[334066346,1722719441701,-500.0,0.00013698,2]